{"text_format":"1","workbook":"xlsx","n_sheets":13,"sheets":["Wniosek","BP_Informacje","BP_Przedsięwzięcie","BP_Konkurencja","BP_Produkty","BP_Zasoby","BP_Przychody","BP_Koszty","BP_Rachunek wyników","BP_Dotacja inwestycyjna","BP_Wsparcie pomostowe","SW_Dotacja inwestycyjna","SW_Wsparcie pomostowe"],"not_rendered":{"charts":0,"images":1,"macros":1,"external_links":0,"defined_names":19,"comments":4,"pivot_tables":0},"unopened":[],"bounds":{"document_bytes":16777216,"sheet_cells":100000,"rows_first":2000,"rows_last":500,"rows_between":2000,"halvings":0,"cell_chars":16384,"cell_head_chars":4096},"cells_cut":0,"cells_raw":0,"read":"whole","date_system":"1900"}

{"sheet":"Wniosek","index":0,"n_rows":33,"n_cols":12,"rows_kept":33,"cut":false,"hidden":false,"merged":[[32,7,32,9],[2,0,2,9],[3,0,3,9],[19,0,19,9],[15,8,15,9],[12,2,13,4],[12,7,13,9],[17,0,18,6],[17,7,18,9],[11,8,11,9],[14,7,14,9],[11,3,11,4],[22,0,22,6],[27,0,27,6],[25,0,25,6],[21,0,21,6],[0,0,0,9],[1,0,1,9],[7,0,10,9],[11,0,11,2],[11,5,11,7],[6,0,6,9],[5,0,5,9],[4,0,4,9],[20,0,20,9],[14,0,16,4],[0,11,2,14],[31,7,31,9],[26,0,26,6],[26,7,26,9],[22,7,22,9],[23,7,23,9],[24,7,24,9],[25,7,25,9],[27,7,27,9],[24,0,24,6],[23,0,23,6],[28,7,28,9],[30,0,30,2],[21,7,21,9]]}
["Wniosek o  przyznanie dotacji na utworzenie miejsca pracy w przedsiębiorstwie społecznym oraz udzielenie podstawowego wsparcia pomostowego.",null,null,null,null,null,null,null,null,null,null,"Uwaga ! Jeśli w arkuszu potrzebujesz dodać więcej wierszy do wpisania osób, produktów, przychodów, kosztów (lewa strona arkusza - belka boczna \"+\") należy wcześniej uruchomić makra formularza excel. Hasło: CRIS "]
["Dane uczestnika/ów projektu (podmiotu lub lista członków założycieli: nazwa wnioskodawcy/ów / imię nazwisko, adres, nr telefonu, mail):"]
["  "]
[]
[]
[]
[]
["Wnoszę o przyznanie środków finansowych  na utworzenie miejsca pracy w przedsiębiorstwie społecznym, w celu sfinansowania wydatków związanych z przygotowaniem podmiotu do działalności/ rozwojem działalności, zgodnie z załączonym Biznesplanem oraz Planem inwestycyjnym, a także przyznania wsparcia pomostowego zgodnie z harmonogramem rzeczowo – finansowym do postawowego wsparcia pomostowego."]
[]
[]
[]
["Wnioskowana kwota środków dotacji:",null,null,{"$f":"SUM('BP_Dotacja inwestycyjna'!F4:O4)","v":0},null,"Wnioskowana kwota środków wsparcia pomostowego:",null,null,{"$f":"SUM('BP_Wsparcie pomostowe'!F5:O5)","v":0}]
[]
[null,"słownie:",null,null,null,null,"słownie:"]
[null,null,null,null,null,"- ilość rat:",null,6]
[null,null,null,null,null,"- wysokość każdej w PLN:",null,null,{"$f":"'BP_Wsparcie pomostowe'!I5/6","v":0}]
[null,null,null,null,null,"- w okresie od dnia:",null,null,"do dnia:"]
["Wnioskowana forma zabezpieczenia prawidłowej realizacji umowy \no przyznanie wsparcia finansowego na utworzenie miejsca pracy w przedsiębiorstwie społecznym oraz realizacji umowy o przyznane wsparcie pomostowe:"]
[]
["Ja, niżej podpisany/na wnioskuję o przyznanie środków finansowych na utworzenie miejsca pracy w przedsiębiorstwie społecznym  dla (nazwa/ planowana nazwa przedsiębiorstwa społecznego):"]
[]
["Lista osób planowanych do zatrudnienia w ramach dotacji:",null,null,null,null,null,null,"Wnioskowana kwota:"]
[]
[]
[]
[]
[]
[]
[null,null,null,null,null,null,"Suma:",{"$f":"SUM(F23:J28)","v":0}]
["Data rozpoczęcia działalności gospodarczej w formie przedsiębiorstwa społecznego:"]
[]
["Data zawarcia umowy o przyznanie środków finansowych: "]
["Nr umowy o przyznanie środków finansowych:"]

{"sheet":"BP_Informacje","index":1,"n_rows":43,"n_cols":14,"rows_kept":43,"cut":false,"hidden":false,"merged":[[8,13,15,18],[7,13,7,18],[20,0,35,2],[20,3,35,12],[2,0,6,12],[8,3,8,12],[9,3,9,12],[10,3,10,12],[12,3,14,12],[7,0,7,12],[8,0,8,2],[9,0,9,2],[10,0,10,2],[11,0,11,2],[18,3,18,12],[19,3,19,12],[11,3,11,7],[19,0,19,2],[18,0,18,2],[12,0,14,2],[11,8,11,12],[15,3,15,12],[15,0,15,2],[17,0,17,12],[42,0,45,2],[42,3,45,12],[36,0,37,2],[36,3,37,12],[38,0,39,2],[40,0,41,2],[38,3,39,12],[40,3,41,12]]}
["Załącznik nr 1 Biznesplan"]
[]
["Realizacja wsparcia odbywa się w ramach projektu „Ośrodek Wsparcia Ekonomii Społecznej Obszaru Rybnickiego”, współfinansowanego z Europejskiego Funduszu Społecznego w ramach Regionalnego Programu Operacyjnego Województwa Śląskiego na lata 2014-2020 – Oś Priorytetowa IX Włączenie społeczne, Działanie 9.3 Rozwój ekonomii społecznej w regionie Poddziałanie 9.3.1 Wsparcie sektora ekonomii społecznej – projekty konkursowe."]
[]
[]
[]
[]
["1. Dane wnioskodawcy",null,null,null,null,null,null,null,null,null,null,null,null,"Instrukcja pkt 1"]
["1. Nazwa grupy inicjatywnej/ nazwa pomysłu ",null,null,null,null,null,null,null,null,null,null,null,null,"Grupa inicjatywna składa się z osób fizycznych, podmiotów ekonomii społecznej lub istniejących przedsiębiorstw społecznych (w zależności od ogłoszenia konkursowego). \n\nW przypadku osób fizycznych wnioskodawcy wskazują nazwę grupy inicjatywnej lub nazwę pomysłu dla planowanego przedsięwzięcia. W dalszej części (forma prawna, adres, osoby reprezentujące grupę zgodnie z założeniami pomysłu - na podstawie opracowanego planu).\n\nW przypadku osób prawnych (PES, PS) dane powinny być zgodne z obowiązującymi w organizacji i zgodne z publicznymi rejestrami (np. KRS)."]
["2. Forma prawna  "]
["3.  Adres "]
["4. NIP/REGON (jeśli dotyczy)"]
["5. Osoby reprezentujące grupę inicjatywną/ pomysł"]
[]
[]
["6. Telefon/adres e-mail"]
[]
["2. Opis dotychczas prowadzonej działalności"]
["1. Data rozpoczęcia działalności"]
["2. Miejsce prowadzenia działalności"]
["3. Dotychczasowa działalność przedsiębiorstwa społecznego – jeśli dotyczy (max. 1200 znaków)"]
[]
[]
[]
[]
[]
[]
[]
[]
[]
[]
[]
[]
[]
[]
[]
["4. Czy przedsiębiorstwo społeczne korzystało wcześniej z wsparcia OWES?",null,null,null,null,null,null,null,null,null,null,0]
[]
["5. Czy przedsiębiorstwo społeczne utworzyło miejsca pracy?"]
[]
["6. Czy utworzone miejsca pracy zostały utrzymane?"]
[]
["7. Jeśli nie utrzymano miejsc pracy, wskaż dlaczego (max. 250 znaków)."]

{"sheet":"BP_Przedsięwzięcie","index":2,"n_rows":27,"n_cols":23,"rows_kept":27,"cut":false,"hidden":false,"merged":[[12,11,14,11],[16,11,18,11],[21,11,23,11],[0,12,0,21],[7,12,7,21],[7,0,7,10],[11,0,11,10],[0,0,0,10],[8,12,10,21],[11,12,11,21],[8,0,10,10],[1,0,6,10],[1,12,6,21],[1,11,6,11],[8,11,10,11],[19,12,19,21],[21,4,21,10],[22,4,22,10],[23,4,23,10],[12,12,14,21],[15,12,15,21],[16,12,18,21],[15,0,15,10],[19,0,19,10],[12,0,14,10],[16,0,18,10],[21,18,23,21],[20,4,20,10],[20,1,20,3],[21,12,23,17],[26,4,26,10],[25,1,25,3],[26,1,26,3],[23,1,23,3],[21,1,21,3],[22,1,22,3],[24,0,24,10],[25,4,25,10]]}
["1. Diagnoza i uzasadnienie planowanej działalności (max. 1300 znaków)",null,null,null,null,null,null,null,null,null,null,null,"Instrukcja pkt 1"]
[null,null,null,null,null,null,null,null,null,null,null,null,"Należy opisać jakie argumenty uzasadniają podjęcie działalności gospodarczej uwzględniając czynniki zewnętrzne (np.. demografię, zmiany w prawie, technologię, trendy, statystyki znajdujące się w publicznych raportach, publikacjach lub innych opracowaniach z podaniem ich źródła) oraz czynniki wewnętrzne związane z argumentami obejmującymi funkcjonowanie organizacji, jej członków, podopiecznych czy też pracowników. W uzasadnieniu określ sytuację  odnosząc się również do miejsca realizacji przedsięwzięcia."]
[]
[]
[]
[]
[]
["2. Działania przeprowadzone w celu zweryfikowania zapotrzebowania (max. 650 znaków)",null,null,null,null,null,null,null,null,null,null,null,"Instrukcja pkt 2"]
[null,null,null,null,null,null,null,null,null,null,null,null,"Czy wnioskodawca przeprowadzał działania, które pozwoliły zweryfikować pomysł. Czy strategia, która ma generować sprzedaż została przetestowana? Czy kanały dystrybucji zostały już częściowo wykorzystane i reakcje klientów okazały się pozytywne. Istotną rolą działań jest prosta weryfikacja czy tworzone produkty lub metody dotarcia odpowiadają na potrzebę odbiorców i wnioskodawca może wskazać wiarygodne przesłanki na ten temat."]
[]
[]
["3. Misja/Wizja (max. 650 znaków)",null,null,null,null,null,null,null,null,null,null,null,"Instrukcja pkt 3"]
[null,null,null,null,null,null,null,null,null,null,null,null,"Opisz jak definiujesz misję i wizję swojego przedsięwzięcia mając na uwadzę, że:\nMisja stanowi zestaw głównych wartości, które są zgodne z wewnętrznymi zasadami organizacji/osoby oraz jest elementem komunikacji zewnętrznej stanowiąc bazę do opracowania spójnych kanałów marketingu.\nWizja wskazuje na sytuację organizacji w dłuższej perspektywie. Odpowiada na pytanie do czego dąży organizacja i jaka ma być jej sytuacja docelowa. Wizja pomaga prowadzić przedsięwzięcie we właściwym kierunku, jednocześnie motywując do podjemowania aktywnych działań przez osoby zaangażowane w projekt."]
[]
[]
["4. Cele (max. 650 znaków)",null,null,null,null,null,null,null,null,null,null,null,"Instrukcja pkt 4"]
[null,null,null,null,null,null,null,null,null,null,null,null,"Należy przedstawić miarodajne cele w perspektywie pierwszego oraz trzeciego roku działalności. Przy konstruowaniu celu istotne jest podanie mierzalnych wartości celu oraz  terminu jego osiągnięcia. W kostrukcji celów zwróć uwagę co najmniej na wymiar biznesowy i społeczny realizowanego przedsięwzięcia. "]
[]
[]
["5. Klienci",null,null,null,null,null,null,null,null,null,null,null,"Instrukcja pkt 5"]
[null,"Opis wyszczególnionej grupy \n(max. 200 znaków)",null,null,"Uzasadnienie doboru klientów (max. 450 znaków)"]
["a)"," ",null,null," ",null,null,null,null,null,null,null,"Przedstaw informacje dotyczące poszczególnych grup docelowych. Należy wypisać cechy grupy, jej zachowania, informacje przydatne w kontekście konstruowania oferty. Istotne jest podanie informacji o obawach i korzyściach, które są dla niej charakterystyczne. W ocenie realności założeń biznesplanu ważne jest właściwe powiązanie ogólnej diagnozy sytuacji, wyboru kluczowych klientów oraz wartości w postaci oferty, którą zamierzamy oferować klientom.",null,null,null,null,null,"Uwaga ! Jeśli w arkuszu potrzebujesz dodać więcej wierszy do wpisania osób, produktów, przychodów, kosztów (lewa strona arkusza - belka boczna \"+\") należy wcześniej uruchomić makra formularza excel. Hasło: CRIS "]
["b)"," ",null,null," "]
["c)"," ",null,null," "]
["\"+\" <--- Dodaj kolejne grupy klientów"]
["d)"," ",null,null," ",null,null,null,null,null,null,null,null,null,null,null,null,null,null,null,null,null,{"$f":"LEN(E26)","v":1}]
["e)"," ",null,null," ",null,null,null,null,null,null,null,null,null,null,null,null,null,null,null,null,null,{"$f":"LEN(E27)","v":1}]

{"sheet":"BP_Konkurencja","index":3,"n_rows":9,"n_cols":13,"rows_kept":9,"cut":false,"hidden":false,"merged":[[2,12,2,17],[3,12,4,17],[0,0,0,9],[8,0,9,0],[2,2,3,6],[4,2,5,6],[6,2,7,6],[8,1,9,6],[2,1,3,1],[4,1,5,1],[6,1,7,1],[1,2,1,6]]}
["Analiza konkurencji"]
[null,"Nazwa:","Obszar działalności konkurencji/produktów konkurencji \n(max. 650 znaków):",null,null,null,null,"Jakość:","Cena:","Marketing:","Suma:"]
["a)"," "," ",null,null,null,null," "," "," ",{"$f":"SUM(H3:J3)","v":0},null,"Instrukcja"]
[null,null,null,null,null,null,null,null,null,null,null,null,"Należy dokonać analizy konkurencji bezpośredniej, a jeżeli konkurencja bezpośrednia nie występuje analizy konkurencji pośredniej dotyczącej określonych produktów i usług oraz wartości dla klienta. Istotny jest obszar konkurencji z innymi podmiotami nawiązując do wskazanej ogolnej oceny przez pryzmat jakości, ceny i marketingu."]
["b)"," "," ",null,null,null,null,null,null,null,{"$f":"SUM(H5:J5)","v":0}]
[]
["c)"," "," ",null,null,null,null," "," "," ",0]
[]
["d)",{"$f":"BP_Informacje!D9","v":0},null,null,null,null,null,null,null,null,0]

{"sheet":"BP_Produkty","index":4,"n_rows":50,"n_cols":21,"rows_kept":50,"cut":false,"hidden":false,"merged":[[43,6,43,13],[27,10,27,13],[27,6,27,9],[35,15,35,20],[20,15,20,20],[39,6,39,13],[38,0,38,13],[40,6,40,13],[48,15,48,20],[47,0,47,13],[49,1,49,13],[48,0,48,13],[11,1,12,1],[15,1,16,1],[13,1,14,1],[11,0,12,0],[13,0,14,0],[15,0,16,0],[11,18,12,18],[13,18,14,18],[15,18,16,18],[11,19,12,19],[13,19,14,19],[15,19,16,19],[41,0,41,13],[49,15,49,20],[44,0,44,13],[42,6,42,13],[6,6,6,20],[7,6,7,20],[18,0,18,13],[10,2,10,17],[9,0,9,20],[28,6,28,9],[26,0,26,13],[27,2,27,5],[28,2,28,5],[22,10,22,13],[24,10,24,13],[28,10,28,13],[25,2,25,5],[45,6,45,13],[46,6,46,13],[42,2,42,5],[43,2,43,5],[45,2,45,5],[46,2,46,5],[31,10,31,13],[29,0,29,13],[30,2,30,5],[31,2,31,5],[31,6,31,9],[30,10,30,13],[30,6,30,9],[34,2,34,5],[35,2,35,5],[36,2,36,5],[37,2,37,5],[39,2,39,5],[35,6,35,13],[36,6,36,13],[32,0,32,13],[40,2,40,5],[34,6,34,13],[37,6,37,13],[33,0,33,13],[20,2,20,5],[21,2,21,5],[22,2,22,5],[24,2,24,5],[20,6,20,9],[21,6,21,9],[22,6,22,9],[24,6,24,9],[25,10,25,13],[25,6,25,9],[20,10,20,13],[21,10,21,13],[23,0,23,13],[2,6,2,20],[3,6,3,20],[4,6,4,20],[1,6,1,20],[0,0,0,20],[5,0,5,20],[21,15,22,18],[19,15,19,20],[34,15,34,20],[19,10,19,13],[19,2,19,5],[2,1,2,5],[3,1,3,5],[4,1,4,5],[1,0,1,5],[11,2,12,17],[13,2,14,17],[15,2,16,17],[6,1,6,5],[7,1,7,5],[11,20,12,20],[13,20,14,20],[15,20,16,20],[19,6,19,9]]}
[{"$f":"BP_Przedsięwzięcie!A20","v":"5. Klienci"}]
[{"$f":"BP_Przedsięwzięcie!B21","v":"Opis wyszczególnionej grupy \n(max. 200 znaków)"},null,null,null,null,null,{"$f":"BP_Przedsięwzięcie!E21","v":"Uzasadnienie doboru klientów (max. 450 znaków)"}]
[{"$f":"BP_Przedsięwzięcie!A22","v":"a)"},{"$f":"BP_Przedsięwzięcie!B22","v":" "},null,null,null,null,{"$f":"BP_Przedsięwzięcie!E22","v":" "}]
[{"$f":"BP_Przedsięwzięcie!A23","v":"b)"},{"$f":"BP_Przedsięwzięcie!B23","v":" "},null,null,null,null,{"$f":"BP_Przedsięwzięcie!E23","v":" "}]
[{"$f":"BP_Przedsięwzięcie!A24","v":"c)"},{"$f":"BP_Przedsięwzięcie!B24","v":" "},null,null,null,null,{"$f":"BP_Przedsięwzięcie!E24","v":" "}]
[{"$f":"BP_Przedsięwzięcie!A25","v":"\"+\" <--- Dodaj kolejne grupy klientów"}]
[{"$f":"BP_Przedsięwzięcie!A26","v":"d)"},{"$f":"BP_Przedsięwzięcie!B26","v":" "},null,null,null,null,{"$f":"BP_Przedsięwzięcie!E26","v":" "}]
[{"$f":"BP_Przedsięwzięcie!A27","v":"e)"},{"$f":"BP_Przedsięwzięcie!B27","v":" "},null,null,null,null,{"$f":"BP_Przedsięwzięcie!E27","v":" "}]
[]
[{"$f":"BP_Konkurencja!A1","v":"Analiza konkurencji"}]
[null,{"$f":"BP_Konkurencja!B2","v":"Nazwa:"},{"$f":"BP_Konkurencja!C2","v":"Obszar działalności konkurencji/produktów konkurencji \n(max. 650 znaków):"},null,null,null,null,null,null,null,null,null,null,null,null,null,null,null,{"$f":"BP_Konkurencja!H2","v":"Jakość:"},{"$f":"BP_Konkurencja!I2","v":"Cena:"},{"$f":"BP_Konkurencja!J2","v":"Marketing:"}]
[{"$f":"BP_Konkurencja!A3","v":"a)"},{"$f":"BP_Konkurencja!B3","v":" "},{"$f":"BP_Konkurencja!C3","v":" "},null,null,null,null,null,null,null,null,null,null,null,null,null,null,null,{"$f":"BP_Konkurencja!H3","v":" "},{"$f":"BP_Konkurencja!I3","v":" "},{"$f":"BP_Konkurencja!J3","v":" "}]
[]
[{"$f":"BP_Konkurencja!A5","v":"b)"},{"$f":"BP_Konkurencja!B5","v":" "},{"$f":"BP_Konkurencja!C5","v":" "},null,null,null,null,null,null,null,null,null,null,null,null,null,null,null,{"$f":"BP_Konkurencja!H5","v":0},{"$f":"BP_Konkurencja!I5","v":0},{"$f":"BP_Konkurencja!J5","v":0}]
[]
[{"$f":"BP_Konkurencja!A7","v":"c)"},{"$f":"BP_Konkurencja!B7","v":" "},{"$f":"BP_Konkurencja!C7","v":" "},null,null,null,null,null,null,null,null,null,null,null,null,null,null,null,{"$f":"BP_Konkurencja!H7","v":" "},{"$f":"BP_Konkurencja!I7","v":" "},{"$f":"BP_Konkurencja!J7","v":" "}]
[]
[]
["1. Produkty/usługi"]
[null,"Nazwa produktu/ usługi","Opis produktu/usługi \n(max. 200 znaków)",null,null,null,"W jaki sposób produkt odpowiada \nna potrzeby klienta (max. 300 znaków)",null,null,null,"W jaki sposób produkt wyróżnia się \nna tle konkurencji (max. 300 znaków)",null,null,null,null,"Instrukcja pkt 1"]
["a)"," ",null,null,null,null,null,null,null,null,null,null,null,null,null,"Należy dokonać opis swojego produktu lub usługi uwzględniając specyficzne cechy. \nW dalszej części istotne jest wskazanie w kontekście grupy docelowej jak produkt lub usługa zaspokajają potrzeby klienta, odpowiadają na jego potrzeby i oczekiwania. Jak produkt oddziałuje na korzyści lub obawy klienta. \nOstatecznie ważne jest również określenie produktu względem produktu konkurencyjnego , jakie ma wyróżniki i w jakim segmencie może być dla klienta bardziej atrakcyjny niż oferta konkurencji."]
["b)"," ",null,null,null,null,null,null,null,null,null,null,null,null,null,"Uwaga! Jeśli w arkuszu potrzebujesz dodać więcej wierszy do wpisania osób, produktów, przychodów, kosztów (lewa strona arkusza - belka boczna \"+\") należy wcześniej uruchomić makra formularza excel. Hasło: CRIS "]
["c)"," "]
["\"+\" <--- Dodaj kolejne produkty"]
["d)"," "]
["e)"," "]
[]
["f)"," "]
["g)"," "]
[]
["h)"," "]
["i)"," "]
[]
["2. Marketing produktu/usługi"]
[null,{"$f":"B20","v":"Nazwa produktu/ usługi"},"Dystrybucja produktu/usługi \n(max. 200 znaków)",null,null,null,"Planowane kanały komunikacji i promocji (max. 500 znaków)",null,null,null,null,null,null,null,null,"Instrukcja pkt 2"]
[{"$f":"A21","v":"a)"},{"$f":"B21","v":" "},null,null,null,null,null,null,null,null,null,null,null,null,null,"Wnioskodawca wskazuje kanały dystrybucji i sprzedaży. Czy oferta będzie proponowana w sposób stacjonarny, mobilny  czy za pomocą sprzedaży internetowej. Czy wnioskodawca wykorzystuje inne dostępne platformy sprzedaży i dlaczego ta forma jest najbardziej efektywna.\nW dalszej części należy wskazać kanały komunikacji, dotarcia do klientów z informacją i reklamą. Istotne jest wskazanie strategii promocji - jakie narzędzia zostaną zastosowane i dlaczego wnioskodawca wskazuje na ich efektywność."]
[{"$f":"A22","v":"b)"},{"$f":"B22","v":" "}]
[{"$f":"A23","v":"c)"},{"$f":"B23","v":" "}]
["\"+\" <--- Dodaj kolejne produkty"]
[{"$f":"A25","v":"d)"},{"$f":"B25","v":" "}]
[{"$f":"A26","v":"e)"},{"$f":"B26","v":" "}]
[]
[{"$f":"A28","v":"f)"},{"$f":"B28","v":" "}]
["g)",{"$f":"B29","v":" "}]
[]
[{"$f":"A31","v":"h)"},{"$f":"B31","v":" "}]
[{"$f":"A32","v":"i)"},{"$f":"B32","v":" "}]
[]
["3. Potencjał rozwojowy przedsięwzięcia (max. 2000 znaków)",null,null,null,null,null,null,null,null,null,null,null,null,null,null,"Instrukcja pkt 3"]
["a)",null,null,null,null,null,null,null,null,null,null,null,null,null,null,"Wnioskodawca wskazuje potencjał swojej działalności. Jak na bazie istniejącego zasobu można rozwijac zakres swoich usług. Czy możliwe jest utworzenie nowej oferty lub uzupełnienie istniejącej o nowe komplemantarne elementy. Czy przedstawiony potencjał daje szanse na ewentualne pozyskanie dodatkowych przychodów poprzez zaangażowanie nowych lub wyższy zwrot z inwestycji w dotychczasowych klientów. "]

{"sheet":"BP_Zasoby","index":5,"n_rows":70,"n_cols":11,"rows_kept":70,"cut":false,"hidden":false,"merged":[[21,3,21,4],[22,3,22,4],[23,3,23,4],[21,5,21,6],[21,7,21,8],[22,5,22,6],[22,7,22,8],[23,5,23,6],[23,7,23,8],[33,2,33,8],[54,0,54,8],[30,0,30,8],[67,7,67,8],[68,3,68,6],[68,7,68,8],[69,7,69,8],[61,7,61,8],[64,7,64,8],[65,7,65,8],[66,0,66,8],[65,3,65,6],[64,3,64,6],[63,7,63,8],[61,3,61,6],[62,7,62,8],[63,3,63,6],[62,3,62,6],[69,3,69,6],[15,3,15,4],[16,3,16,4],[17,3,17,4],[18,3,18,4],[67,3,67,6],[19,5,19,6],[53,1,53,8],[50,1,50,8],[55,1,55,8],[59,0,59,6],[59,7,60,8],[31,2,31,8],[58,1,58,8],[57,1,57,8],[51,1,51,8],[27,2,27,8],[20,0,20,8],[19,3,19,4],[28,2,28,8],[29,2,29,8],[52,1,52,8],[56,1,56,8],[49,0,49,8],[32,2,32,8],[15,7,15,8],[16,7,16,8],[17,7,17,8],[18,7,18,8],[19,7,19,8],[15,5,15,6],[16,5,16,6],[17,5,17,6],[18,5,18,6],[3,10,5,13],[5,4,5,8],[6,4,6,8],[7,4,7,8],[14,3,14,4],[14,5,14,6],[13,7,14,8],[0,1,0,8],[9,4,9,8],[10,4,10,8],[11,4,11,8],[2,4,2,8],[3,4,3,8],[4,4,4,8],[8,0,8,8],[36,2,36,3],[35,7,36,8],[35,4,36,4],[38,2,38,3],[35,5,36,6],[39,2,39,3],[37,5,37,6],[37,7,37,8],[38,5,38,6],[38,7,38,8],[26,2,26,8],[46,2,46,3],[46,5,46,6],[46,7,46,8],[47,2,47,3],[47,5,47,6],[47,7,47,8],[44,0,44,8],[41,2,41,3],[41,5,41,6],[41,7,41,8],[42,2,42,3],[42,5,42,6],[42,7,42,8],[43,2,43,3],[43,5,43,6],[43,7,43,8],[45,2,45,3],[45,5,45,6],[45,7,45,8],[40,0,40,8],[39,5,39,6],[39,7,39,8],[37,2,37,3]]}
[null,"1. Zasoby ludzkie"]
[null,"1. Określ  potrzebne stanowiska w planowanym przedsięwzięciu:"]
[null,"Nazwa stanowiska","Opis czynności (max. 100 znaków)","Wymiar zaangażowania","Wymagane doświadczenie i kwalifikacje (max. 200 znaków)"]
["a)"," ",null,null,null,null,null,null,null,null,"Uwaga ! Jeśli w arkuszu potrzebujesz dodać więcej wierszy do wpisania osób, produktów, przychodów, kosztów (lewa strona arkusza - belka boczna \"+\") należy wcześniej uruchomić makra formularza excel. Hasło: CRIS "]
["b)"," "]
["c)"," "]
["d)"," "]
["e)"," "]
["\"+\" <--- Dodaj kolejne osoby"]
["f)"," "]
["g)"," "]
["h)"," "]
[]
[null,"2. Określ osoby planowane do zaangażowania:",null,null,null,null,null,"Zatrudniona w ramach dotacji? (tak/nie)"]
[null,"Nazwa:","Imię i nazwisko (o ile jest możliwe do podania na tym etapie):","Posiadane doświadczenie\ni kwalifikacje (max. 100 znaków)",null,"Wymagane do uzupełnienia kwalifikacje? \n(max. 100 znaków)"]
["a)",{"$f":"B4","v":" "}]
["b)",{"$f":"B5","v":" "}]
["c)"," "]
["d)"," "]
["e)"," "]
["\"+\" <--- Dodaj kolejne osoby"]
["f)",{"$f":"B10","v":" "}]
["g)",{"$f":"B11","v":" "}]
["h)"," "]
[]
[null,"3. Kadra kierownicza/ Zarząd"]
[null,"Imię i nazwisko","Posiadane doświadczenie i kwalifikacje (max. 300 znaków)"]
["a)"]
["b)"]
["c)"]
["\"+\" <--- Dodaj kolejne osoby"]
["f)"]
["g)"]
["h)"]
[]
[null,"4. Aktualny stan zatrudnienia",null,null,"Zatrudniona w ramach  OWES? (tak/nie)","Data zatrudnienia",null,"Wymiar etatu"]
[null,"Imię i nazwisko","Stanowisko"]
["a)"]
["b)"]
["c)"]
["\"+\" <--- Dodaj kolejne osoby"]
["f)"]
["g)"]
["h)"]
[]
["i)"]
["j)"]
["k)"]
[]
["2. Zasoby lokalowe"]
[null,"1. Opis posiadanych zasobów lokalowych lub koniecznych do pozyskania (w tym: posiadany lokal, adres, kondygnacja, metraż, tytuł prawny do lokalu, okres zawiązania umowy) (max. 550 znaków):"]
[]
[null,"2. Wymagania związane z modernizacją (w tym: potrzeby remontowe, potrzeby uzupełnienia infrastruktury i wyposażenia):"]
[]
["3. Zasoby ruchome"]
[null,"1. Opis posiadanych zasobów (patenty, licencje, sprzęty, maszyny, środki transportu oraz inne wyposażenie potrzebne do realizacji projektu) i wycena ich wartości:"]
[]
[null,"2. Wymagania związane z zasobami koniecznymi do pozyskania lub wymagającymi modernizacji (w tym: uzupełnienie i serwis sprzętu, konieczne programy, licencje, know-how):"]
[]
["4. Kluczowi partnerzy",null,null,null,null,null,null,"Czy partner będzie klientem PS i zostało podpisane porozumienie? (tak/nie)"]
[null,"Nazwa:","Adres:","Zakres współpracy o kluczowym znaczeniu:"]
["a)"]
["b)"]
["c)"]
["d)"]
["e)"]
["\"+\" <--- Dodaj kolejnych partnerów"]
["f)"]
["g)"]
["h)"]

{"sheet":"BP_Przychody","index":6,"n_rows":60,"n_cols":18,"rows_kept":60,"cut":false,"hidden":false,"merged":[[38,8,39,9],[38,10,39,15],[40,8,41,9],[40,10,41,15],[33,8,34,9],[33,10,34,15],[35,8,36,9],[35,10,36,15],[43,8,44,9],[43,10,44,15],[45,8,46,9],[45,10,46,15],[55,8,56,9],[55,10,56,15],[53,8,54,9],[53,10,54,15],[48,8,49,9],[48,10,49,15],[50,8,51,9],[50,10,51,15],[0,0,0,6],[1,0,1,6],[12,0,12,6],[2,1,2,6],[3,1,3,6],[4,1,4,6],[5,1,5,6],[6,1,6,6],[7,1,7,6],[8,1,8,6],[9,1,9,6],[10,1,10,6],[18,10,19,15],[20,8,21,9],[20,10,21,15],[23,8,24,9],[23,10,24,15],[1,8,5,15],[0,17,5,20],[0,8,0,15],[25,10,26,15],[32,0,32,6],[28,8,29,9],[28,10,29,15],[30,8,31,9],[30,10,31,15],[25,8,26,9],[12,8,12,15],[13,8,14,9],[15,8,16,9],[13,10,14,15],[15,10,16,15],[18,8,19,9]]}
["Prognoza przychodów",null,null,null,null,null,null,null,"Instrukcja",null,null,null,null,null,null,null,null,"Uwaga ! Jeśli w arkuszu potrzebujesz dodać więcej wierszy do wpisania osób, produktów, przychodów, kosztów (lewa strona arkusza - belka boczna \"+\") należy wcześniej uruchomić makra formularza excel. Hasło: CRIS "]
["1. Określ swoje produkty/kategorie produktów:",null,null,null,null,null,null,null,"Wnioskodawca określa ilość sprzedanych produktów w danym kwartale oraz w kolejnych dwóch latach, a następnie cenę spredaży produktu. Należy wskazać sposób kalkulacji i ceny, który pomoże ocenić wiarygodność określonych kwot i ilości. Warto wskazać czy przychody będą podlegały wachaniom sezonowości, co uzasadni różnice w planowanej sprzedaży."]
[{"$f":"BP_Produkty!A36","v":"a)"},{"$f":"BP_Produkty!B21","v":" "}]
[{"$f":"BP_Produkty!A37","v":"b)"},{"$f":"BP_Produkty!B22","v":" "}]
[{"$f":"BP_Produkty!A38","v":"c)"},{"$f":"BP_Produkty!B23","v":" "}]
[{"$f":"BP_Produkty!A40","v":"d)"},{"$f":"BP_Produkty!B25","v":" "}]
[{"$f":"BP_Produkty!A41","v":"e)"},{"$f":"BP_Produkty!B26","v":" "}]
[{"$f":"BP_Produkty!A43","v":"f)"},{"$f":"BP_Produkty!B28","v":" "}]
[{"$f":"BP_Produkty!A44","v":"g)"},{"$f":"BP_Produkty!B29","v":" "}]
[{"$f":"BP_Produkty!A46","v":"h)"},{"$f":"BP_Produkty!B31","v":" "}]
[{"$f":"BP_Produkty!A47","v":"i)"},{"$f":"BP_Produkty!B32","v":" "}]
[]
["2. Prognoza przychodów na produkcie",null,null,null,null,null,null,null,"Wyjaśnienia kalkulacji ilości i cen (max. 100 znaków)"]
[{"$f":"B3","v":" "},"I kwartał","II kwartał","III kwartał","IV kwartał","rok n+1","rok n + 2 ",null,{"$f":"A15","v":"Ilość sprzedaży"}]
["Ilość sprzedaży"]
["Cena sprzedaży",null,null,null,null,null,null,null,{"$f":"A16","v":"Cena sprzedaży"}]
["Wartość sprzedaży",{"$f":"B15*B16","v":0},{"$f":"C15*C16","v":0},{"$f":"D15*D16","v":0},{"$f":"E15*E16","v":0},{"$f":"F15*F16","v":0},{"$f":"G15*G16","v":0}]
[]
[{"$f":"B4","v":" "},"I kwartał","II kwartał","III kwartał","IV kwartał","rok n+1","rok n + 2 ",null,{"$f":"A20","v":"Ilość sprzedaży"}]
["Ilość sprzedaży"]
["Cena sprzedaży",null,null,null,null,null,null,null,{"$f":"A21","v":"Cena sprzedaży"}]
["Wartość sprzedaży",{"$f":"B20*B21","v":0},{"$f":"C20*C21","v":0},0,0,0,0]
[]
[{"$f":"B5","v":" "},"I kwartał","II kwartał","III kwartał","IV kwartał","rok n+1","rok n + 2 ",null,{"$f":"A25","v":"Ilość sprzedaży"}]
["Ilość sprzedaży"]
["Cena sprzedaży",null,null,null,null,null,null,null,{"$f":"A26","v":"Cena sprzedaży"}]
["Wartość sprzedaży",{"$f":"B25*B26","v":0},{"$f":"C25*C26","v":0},0,0,0,0]
[]
[{"$f":"B6","v":" "},"I kwartał","II kwartał","III kwartał","IV kwartał","rok n+1","rok n + 2 ",null,{"$f":"A30","v":"Ilość sprzedaży"}]
["Ilość sprzedaży"]
["Cena sprzedaży",null,null,null,null,null,null,null,{"$f":"A31","v":"Cena sprzedaży"}]
["Wartość sprzedaży",{"$f":"B30*B31","v":0},{"$f":"C30*C31","v":0},0,0,0,0]
["\"+\" <--- Dodaj kolejne produkty"]
[{"$f":"B7","v":" "},"I kwartał","II kwartał","III kwartał","IV kwartał","rok n+1","rok n + 2 ",null,{"$f":"A35","v":"Ilość sprzedaży"}]
["Ilość sprzedaży"]
["Cena sprzedaży",null,null,null,null,null,null,null,{"$f":"A36","v":"Cena sprzedaży"}]
["Wartość sprzedaży",{"$f":"B35*B36","v":0},{"$f":"C35*C36","v":0},0,0,0,0]
[]
[{"$f":"B8","v":" "},"I kwartał","II kwartał","III kwartał","IV kwartał","rok n+1","rok n + 2 ",null,{"$f":"A40","v":"Ilość sprzedaży"}]
["Ilość sprzedaży"]
["Cena sprzedaży",null,null,null,null,null,null,null,{"$f":"A41","v":"Cena sprzedaży"}]
["Wartość sprzedaży",{"$f":"B40*B41","v":0},{"$f":"C40*C41","v":0},0,0,0,0]
[]
[{"$f":"B9","v":" "},"I kwartał","II kwartał","III kwartał","IV kwartał","rok n+1","rok n + 2 ",null,{"$f":"A45","v":"Ilość sprzedaży"}]
["Ilość sprzedaży"]
["Cena sprzedaży",null,null,null,null,null,null,null,{"$f":"A46","v":"Cena sprzedaży"}]
["Wartość sprzedaży",{"$f":"B45*B46","v":0},{"$f":"C45*C46","v":0},0,0,0,0]
[]
[{"$f":"B10","v":" "},"I kwartał","II kwartał","III kwartał","IV kwartał","rok n+1","rok n + 2 ",null,{"$f":"A50","v":"Ilość sprzedaży"}]
["Ilość sprzedaży"]
["Cena sprzedaży",null,null,null,null,null,null,null,{"$f":"A51","v":"Cena sprzedaży"}]
["Wartość sprzedaży",{"$f":"B50*B51","v":0},{"$f":"C50*C51","v":0},0,0,0,0]
[]
[{"$f":"B11","v":" "},"I kwartał","II kwartał","III kwartał","IV kwartał","rok n+1","rok n + 2 ",null,{"$f":"A55","v":"Ilość sprzedaży"}]
["Ilość sprzedaży"]
["Cena sprzedaży",null,null,null,null,null,null,null,{"$f":"A56","v":"Cena sprzedaży"}]
["Wartość sprzedaży",{"$f":"B55*B56","v":0},{"$f":"C55*C56","v":0},0,0,0,0]
[]
["Łączna wartość sprzedaży","I kwartał","II kwartał","III kwartał","IV kwartał","rok n+1","rok n + 2 "]
[null,{"$f":"B17+B22+B27+B32+B37+B42+B47+B52+B57","v":0},0,0,0,0,0]

{"sheet":"BP_Koszty","index":7,"n_rows":61,"n_cols":18,"rows_kept":61,"cut":false,"hidden":false,"merged":[[12,0,12,6],[12,8,12,15],[0,8,0,15],[27,8,27,15],[22,8,22,15],[17,8,17,15],[14,8,14,15],[0,17,5,20],[59,8,59,9],[0,0,0,6],[1,0,1,6],[2,1,2,6],[3,1,3,6],[4,1,4,6],[5,1,5,6],[6,1,6,6],[7,1,7,6],[8,1,8,6],[9,1,9,6],[10,1,10,6],[32,8,32,15],[38,0,38,6],[1,8,5,15]]}
["Prognoza kosztów",null,null,null,null,null,null,null,"Instrukcja",null,null,null,null,null,null,null,null,"Uwaga ! Jeśli w arkuszu potrzebujesz dodać więcej wierszy do wpisania osób, produktów, przychodów, kosztów (lewa strona arkusza - belka boczna \"+\") należy wcześniej uruchomić makra formularza excel. Hasło: CRIS "]
["1. Określ swoje produkty/kategorie produktów:",null,null,null,null,null,null,null,"Wnioskodawca określa koszty zmienne - czyli koszty zależne od ilości sprzedanych produktów i usług (np.. Wzraz z wzrostem sprzedanych posiłków rośnie koszt produktów potrzebnych do ich przygotowania). W dalszej części należy podać koszty stałe przedsięwzięcia - niezależne od efektywności sprzedaży, które przedsiębiorca poniesie zarówno w okresie dobrej i złej koniunktury czy sezonowości produktu. Koszty stałe podajemy w blokach (np. koszt wynagrodzenia pracowników sumujemy do jednego wiersza pierwszej części tabeli)"]
[{"$f":"BP_Przychody!A3","v":"a)"},{"$f":"BP_Przychody!B3","v":" "}]
[{"$f":"BP_Przychody!A4","v":"b)"},{"$f":"BP_Przychody!B4","v":" "}]
[{"$f":"BP_Przychody!A5","v":"c)"},{"$f":"BP_Przychody!B5","v":" "}]
[{"$f":"BP_Przychody!A6","v":"d)"},{"$f":"BP_Przychody!B6","v":" "}]
[{"$f":"BP_Przychody!A7","v":"e)"},{"$f":"BP_Przychody!B7","v":" "}]
[{"$f":"BP_Przychody!A8","v":"f)"},{"$f":"BP_Przychody!B8","v":" "}]
[{"$f":"BP_Przychody!A9","v":"g)"},{"$f":"BP_Przychody!B9","v":" "}]
[{"$f":"BP_Przychody!A10","v":"h)"},{"$f":"BP_Przychody!B10","v":" "}]
[{"$f":"BP_Przychody!A11","v":"i)"},{"$f":"BP_Przychody!B11","v":" "}]
[]
["Prognoza kosztów zmiennych na produkcie",null,null,null,null,null,null,null,"Prognoza kosztów stałych"]
[{"$f":"B3","v":" "},"I kwartał","II kwartał","III kwartał","IV kwartał","rok n+1","rok n + 2 ",null,"l.p","Kategoria/Nazwa","I kwartał","II kwartał","III kwartał","IV kwartał","rok n+1","rok n + 2 "]
["Ilość sprzedaży",{"$f":"BP_Przychody!B15","v":0},{"$f":"BP_Przychody!C15","v":0},{"$f":"BP_Przychody!D15","v":0},{"$f":"BP_Przychody!E15","v":0},{"$f":"BP_Przychody!F15","v":0},{"$f":"BP_Przychody!G15","v":0},null,"1. Wynagrodzenia pracowników brutto-brutto"]
["Koszt zmienny sprzedaży",null,null,null,null,null,null,null,1]
["Wartość sprzedaży",{"$f":"B15*B16","v":0},{"$f":"C15*C16","v":0},{"$f":"D15*D16","v":0},{"$f":"E15*E16","v":0},{"$f":"F15*F16","v":0},{"$f":"G15*G16","v":0},null,2]
[null,null,null,null,null,null,null,null,"2. Koszty czynszu + media"]
[{"$f":"B4","v":" "},"I kwartał","II kwartał","III kwartał","IV kwartał","rok n+1","rok n + 2 ",null,3]
["Ilość sprzedaży",{"$f":"BP_Przychody!B20","v":0},{"$f":"BP_Przychody!C20","v":0},{"$f":"BP_Przychody!D20","v":0},{"$f":"BP_Przychody!E20","v":0},{"$f":"BP_Przychody!F20","v":0},{"$f":"BP_Przychody!G20","v":0},null,4]
["Koszt zmienny sprzedaży",null,null,null,null,null,null,null,5]
["Wartość sprzedaży",{"$f":"B20*B21","v":0},{"$f":"C20*C21","v":0},0,0,0,0,null,6]
[null,null,null,null,null,null,null,null,"3. Koszty innych usług obcych"]
[{"$f":"B5","v":" "},"I kwartał","II kwartał","III kwartał","IV kwartał","rok n+1","rok n + 2 ",null,7]
["Ilość sprzedaży",{"$f":"BP_Przychody!B25","v":0},{"$f":"BP_Przychody!C25","v":0},{"$f":"BP_Przychody!D25","v":0},{"$f":"BP_Przychody!E25","v":0},{"$f":"BP_Przychody!F25","v":0},{"$f":"BP_Przychody!G25","v":0},null,8]
["Koszt zmienny sprzedaży",null,null,null,null,null,null,null,9]
["Wartość sprzedaży",{"$f":"B25*B26","v":0},{"$f":"C25*C26","v":0},0,0,0,0,null,10]
[null,null,null,null,null,null,null,null,"4. Koszty marketingu i sprzedaży"]
[{"$f":"B6","v":" "},"I kwartał","II kwartał","III kwartał","IV kwartał","rok n+1","rok n + 2 ",null,11]
["Ilość sprzedaży",{"$f":"BP_Przychody!B30","v":0},{"$f":"BP_Przychody!C30","v":0},{"$f":"BP_Przychody!D30","v":0},{"$f":"BP_Przychody!E30","v":0},{"$f":"BP_Przychody!F30","v":0},{"$f":"BP_Przychody!G30","v":0},null,12]
["Koszt zmienny sprzedaży",null,null,null,null,null,null,null,13]
["Wartość sprzedaży",{"$f":"B30*B31","v":0},{"$f":"C30*C31","v":0},0,0,0,0,null,14]
[null,null,null,null,null,null,null,null,"5. Inne koszty stałe"]
[{"$f":"B7","v":" "},"I kwartał","II kwartał","III kwartał","IV kwartał","rok n+1","rok n + 2 ",null,15]
["Ilość sprzedaży",{"$f":"BP_Przychody!B60","v":0},{"$f":"BP_Przychody!C60","v":0},{"$f":"BP_Przychody!D60","v":0},{"$f":"BP_Przychody!E60","v":0},{"$f":"BP_Przychody!F60","v":0},{"$f":"BP_Przychody!G60","v":0},null,16]
["Koszt zmienny sprzedaży",null,null,null,null,null,null,null,17]
["Wartość sprzedaży",{"$f":"B35*B36","v":0},{"$f":"C35*C36","v":0},0,0,0,0,null,18]
[null,null,null,null,null,null,null,null,19]
["\"+\" <--- Dodaj kolejne produkty",null,null,null,null,null,null,null,20]
[{"$f":"B8","v":" "},"I kwartał","II kwartał","III kwartał","IV kwartał","rok n+1","rok n + 2 ",null,21]
["Ilość sprzedaży",{"$f":"BP_Przychody!B63","v":0},{"$f":"BP_Przychody!C63","v":0},{"$f":"BP_Przychody!D63","v":0},{"$f":"BP_Przychody!E63","v":0},{"$f":"BP_Przychody!F63","v":0},{"$f":"BP_Przychody!G63","v":0},null,22]
["Koszt zmienny sprzedaży",null,null,null,null,null,null,null,23]
["Wartość sprzedaży",{"$f":"B41*B42","v":0},{"$f":"C41*C42","v":0},0,0,0,0,null,24]
[]
[{"$f":"B9","v":" "},"I kwartał","II kwartał","III kwartał","IV kwartał","rok n+1","rok n + 2 "]
["Ilość sprzedaży",{"$f":"BP_Przychody!B68","v":0},{"$f":"BP_Przychody!C68","v":0},{"$f":"BP_Przychody!D68","v":0},{"$f":"BP_Przychody!E68","v":0},{"$f":"BP_Przychody!F68","v":0},{"$f":"BP_Przychody!G68","v":0}]
["Koszt zmienny sprzedaży"]
["Wartość sprzedaży",{"$f":"B46*B47","v":0},{"$f":"C46*C47","v":0},0,0,0,0]
[]
[{"$f":"B10","v":" "},"I kwartał","II kwartał","III kwartał","IV kwartał","rok n+1","rok n + 2 "]
["Ilość sprzedaży",{"$f":"BP_Przychody!B73","v":0},{"$f":"BP_Przychody!C73","v":0},{"$f":"BP_Przychody!D73","v":0},{"$f":"BP_Przychody!E73","v":0},{"$f":"BP_Przychody!F73","v":0},{"$f":"BP_Przychody!G73","v":0}]
["Koszt zmienny sprzedaży"]
["Wartość sprzedaży",{"$f":"B51*B52","v":0},{"$f":"C51*C52","v":0},0,0,0,0]
[]
[{"$f":"B11","v":" "},"I kwartał","II kwartał","III kwartał","IV kwartał","rok n+1","rok n + 2 "]
["Ilość sprzedaży",{"$f":"BP_Przychody!B78","v":0},{"$f":"BP_Przychody!C78","v":0},{"$f":"BP_Przychody!D78","v":0},{"$f":"BP_Przychody!E78","v":0},{"$f":"BP_Przychody!F78","v":0},{"$f":"BP_Przychody!G78","v":0}]
["Koszt zmienny sprzedaży"]
["Wartość sprzedaży",{"$f":"B56*B57","v":0},{"$f":"C56*C57","v":0},0,0,0,0]
[]
["Łączne zmienne koszty sprzedaży","I kwartał","II kwartał","III kwartał","IV kwartał","rok n+1","rok n + 2 ",null,"Łączne koszty stałe",null,"I kwartał","II kwartał","III kwartał","IV kwartał","rok n+1","rok n + 2 "]
[null,{"$f":"B17+B22+B27+B32+B37+B43+B48+B53+B58","v":0},0,0,0,0,0,null,null,null,{"$f":"SUM(K15:K58)","v":0},0,0,0,0,0]

{"sheet":"BP_Rachunek wyników","index":8,"n_rows":19,"n_cols":6,"rows_kept":19,"cut":false,"hidden":false,"merged":[[9,5,9,9],[11,5,11,9],[12,5,12,9],[0,0,0,9],[1,5,1,9],[4,5,4,9],[5,5,5,9],[17,5,17,9],[10,5,10,9],[13,5,13,9],[14,5,14,9],[15,5,15,9]]}
["Uproszczony Rachunek Zysków i Strat"]
[null,"rok n","rok n+1","rok n+2",null,"Dodatkowe wyjaśnienia co do przychodów i kosztów nie ujętych w arkuszu \"Przychody\""]
["I. Przychody ogółem (1+2+3+4), w tym:",{"$f":"B4+B5+B6","v":0},{"$f":"C4+C5+C6","v":0},0]
["1. Przychody z działalności gospodarczej",{"$f":"SUM(BP_Przychody!B60:E60)","v":0},{"$f":"SUM(BP_Przychody!F60)","v":0},{"$f":"SUM(BP_Przychody!G60)","v":0}]
["2. Pozostałe przychody operacyjnej"]
["3. Pozostałe przychody finansowe"]
[]
["II. Koszty ogółem",{"$f":"B9+B15+B16","v":0},{"$f":"C9+C15+C16","v":0},0]
["4. Koszty działalności gospodarczej (bez amortyzacji), w tym:",{"$f":"B10+B11+B12+B13+B14","v":0},{"$f":"C10+C11+C12+C13+C14","v":0},0]
["a) koszty eksploatacyjne (czynsz+media)",{"$f":"SUM(BP_Koszty!K19:N22)","v":0},{"$f":"SUM(BP_Koszty!O19:O22)","v":0},{"$f":"SUM(BP_Koszty!P19:P22)","v":0}]
["b) wynagrodzenia brutto-brutto",{"$f":"SUM(BP_Koszty!K16:N17)","v":0},{"$f":"SUM(BP_Koszty!O16:O17)","v":0},{"$f":"SUM(BP_Koszty!P16:P17)","v":0}]
["c) koszty usług obcych",{"$f":"SUM(BP_Koszty!K24:N27)+SUM(BP_Koszty!K29:N32)","v":0},{"$f":"SUM(BP_Koszty!O24:O27)+SUM(BP_Koszty!O29:O32)","v":0},{"$f":"SUM(BP_Koszty!P24:P27)+SUM(BP_Koszty!P29:P32)","v":0}]
["d) pozostałe koszty działalności gospodarczej",{"$f":"SUM(BP_Koszty!K34:N39)","v":0},{"$f":"SUM(BP_Koszty!O34:O44)","v":0},{"$f":"SUM(BP_Koszty!P34:P44)","v":0}]
["c) koszt zmienne sprzedanych produktów i usług",{"$f":"SUM(BP_Koszty!B61:E61)","v":0},{"$f":"SUM(BP_Koszty!F61)","v":0},{"$f":"SUM(BP_Koszty!G61)","v":0}]
["5. Pozostałe koszty działalności operacyjnej"]
["6. Pozostałe koszty finansowe (pożyczki, kredyty, inne zobowiązania względem instytucji finansowych)"]
[]
["III. 1 Podatek dochodowy (jeśli dotyczy)"]
["IV. 1 Zysk (strata)",{"$f":"(B3-B8)-B18","v":0},{"$f":"(C3-C8)-C18","v":0},{"$f":"(D3-D8)-D18","v":0}]

{"sheet":"BP_Dotacja inwestycyjna","index":9,"n_rows":50,"n_cols":17,"rows_kept":50,"cut":false,"hidden":false,"merged":[[0,0,0,14],[20,12,20,13],[21,12,21,13],[22,12,22,13],[20,1,22,3],[20,5,20,7],[21,5,21,7],[22,5,22,7],[20,8,20,9],[21,8,21,9],[22,8,22,9],[15,10,15,11],[16,10,16,11],[14,12,14,13],[15,12,15,13],[16,12,16,13],[8,1,10,3],[9,8,9,9],[10,8,10,9],[8,10,8,11],[9,10,9,11],[10,10,10,11],[8,12,8,13],[9,12,9,13],[8,0,10,0],[1,0,1,14],[4,1,4,3],[4,4,4,7],[5,5,5,7],[4,10,4,11],[5,10,5,11],[5,8,5,9],[4,8,4,9],[5,0,7,0],[5,12,5,13],[6,12,6,13],[7,12,7,13],[8,5,8,7],[2,0,2,7],[3,0,3,7],[3,8,3,14],[2,8,2,14],[38,8,38,14],[39,8,40,14],[17,0,19,0],[18,5,18,7],[19,5,19,7],[13,5,13,7],[11,0,13,0],[11,5,11,7],[37,0,37,4],[14,1,16,3],[14,5,14,7],[15,5,15,7],[16,5,16,7],[14,8,14,9],[23,0,25,0],[26,0,28,0],[27,5,27,7],[26,5,26,7],[25,10,25,11],[11,8,11,9],[12,8,12,9],[13,8,13,9],[11,12,11,13],[12,12,12,13],[17,5,17,7],[17,12,17,13],[18,12,18,13],[25,8,25,9],[9,5,9,7],[10,5,10,7],[8,8,8,9],[4,12,4,13],[13,12,13,13],[10,12,10,13],[6,8,6,9],[12,5,12,7],[6,5,6,7],[7,5,7,7],[6,10,6,11],[7,10,7,11],[35,5,35,7],[24,12,24,13],[25,12,25,13],[26,12,26,13],[24,5,24,7],[24,10,24,11],[23,8,23,9],[24,8,24,9],[20,10,20,11],[21,10,21,11],[22,10,22,11],[26,8,26,9],[23,5,23,7],[25,5,25,7],[45,0,47,0],[45,1,47,3],[45,5,45,7],[45,8,45,9],[45,10,45,11],[27,12,27,13],[28,12,28,13],[33,5,33,7],[33,8,33,9],[32,0,32,14],[29,0,31,0],[29,1,31,3],[29,5,29,7],[29,8,29,9],[29,10,29,11],[29,12,29,13],[35,8,35,9],[35,10,35,11],[35,12,35,13],[34,5,34,7],[34,8,34,9],[34,10,34,11],[34,12,34,13],[33,0,35,0],[48,12,48,14],[49,5,49,7],[49,8,49,9],[49,10,49,11],[49,12,49,14],[48,1,49,3],[45,12,45,14],[46,5,46,7],[46,8,46,9],[46,10,46,11],[46,12,46,14],[47,5,47,7],[47,8,47,9],[47,10,47,11],[47,12,47,14],[44,12,44,14],[26,10,26,11],[15,8,15,9],[16,8,16,9],[14,10,14,11],[33,1,35,3],[23,10,23,11],[48,0,49,0],[5,1,7,3],[11,1,13,3],[17,1,19,3],[23,1,25,3],[26,1,28,3],[48,5,48,7],[48,8,48,9],[48,10,48,11],[44,1,44,3],[44,4,44,7],[44,8,44,9],[44,10,44,11],[27,10,27,11],[28,10,28,11],[27,8,27,9],[28,8,28,9],[1,16,6,19],[19,12,19,13],[23,12,23,13],[7,8,7,9],[11,10,11,11],[33,10,33,11],[33,12,33,13],[30,5,30,7],[30,8,30,9],[30,10,30,11],[30,12,30,13],[31,5,31,7],[31,8,31,9],[31,10,31,11],[31,12,31,13],[28,5,28,7],[17,8,17,9],[18,8,18,9],[19,8,19,9],[12,10,12,11],[13,10,13,11],[17,10,17,11],[18,10,18,11],[19,10,19,11]]}
[]
["Planowana inwestycja",null,null,null,null,null,null,null,null,null,null,null,null,null,null,null,"Uwaga ! Jeśli w arkuszu potrzebujesz dodać więcej wierszy do wpisania osób, produktów, przychodów, kosztów (lewa strona arkusza - belka boczna \"+\") należy wcześniej uruchomić makra formularza excel. Hasło: CRIS "]
["Czas wydatkowania inwestycji:"]
["Suma wnioskowanego dofinansowania netto (bez podatku VAT):",null,null,null,null,null,null,null,{"$f":"SUM(K6:L36)","v":0}]
[null,"Obszar inwestycji \ni uzasadnienie",null,null,"Nazwa wydatku",null,null,null,"Kalkulacja kosztu:",null,"Suma kosztu netto:",null,"Okres realizacji",null,"W (wypełnia komisja)"]
["1. ",null,null,null,1]
[null,null,null,null,2]
[null,null,null,null,3]
[null,null,null,null,4]
[null,null,null,null,5]
[null,null,null,null,6]
["2. ",null,null,null,1]
[null,null,null,null,2]
[null,null,null,null,3]
[null,null,null,null,4]
[null,null,null,null,5]
[null,null,null,null,6]
["3. ",null,null,null,1]
[null,null,null,null,2]
[null,null,null,null,3]
[null,null,null,null,4]
[null,null,null,null,5]
[null,null,null,null,6]
["4. ",null,null,null,1]
[null,null,null,null,2]
[null,null,null,null,3]
["5. ",null,null,null,1]
[null,null,null,null,2]
[null,null,null,null,3]
["6. ",null,null,null,1]
[null,null,null,null,2]
[null,null,null,null,3]
["\"+\" <--- Dodaj kolejne wydatki"]
["7. ",null,null,null,1]
[null,null,null,null,2]
[null,null,null,null,3]
[]
[]
[null,null,null,null,null,null,null,null,"…………………………………………...……………………………………………."]
[null,null,null,null,null,null,null,null,"Podpis Uczestnik/ów Projektu\n lub osób uprawnionych do reprezentowania podmiotu/ów"]
[]
["Uwaga: Harmonogram rzeczowo-finansowy tworzony jest w kwotach netto (bez uwzględnienia podatku VAT)"]
[]
["Przykład:"]
[null,"Obszar inwestycji i uzasadnienie",null,null,"Nazwa wydatku",null,null,null,"Kalkulacja kosztu:",null,"Suma kosztu:",null,"Okres realizacji"]
["1. ","Koszty remontu - konieczna adaptacja lokalu o pow. 35m2. W zakres robót wchodzą inwestycje w sieć wod-kan, prace budowlane i wykończeniowe",null,null,1,"Prace Wod-Kan",null,null,"1. Rozeznanie rynku - 5 tys. zł",null,5000,null,"01.2019 - 04.2019"]
[null,null,null,null,2,"Prace budowlane i wyburzeniowe",null,null,"1. Budowa ścienek (rozeznanie rynku - 4,5 tys. zł)\n2. Malowanie (1,5 tys. zł) \n3. Prace wyburzeniowe i sprzątanie (2,5 tys. zł)",null,8500,null,"01.2019 - 04.2019"]
[null,null,null,null,3,"Wyposażenie w meble i wystrój",null,null,"1. Zakup mebli (4 tys. zł)\n2. Zakup elementów wystroju (1 tys. zł)",null,5000,null,"04.2019-06.2019"]
["2. ","Zakup samochodu -konieczny ze względu na sprzedaż żywności poza lokalem ",null,null,1,"Samochód",null,null,"Samochód (zasada konkurencyjności) - 10 tys. zł",null,10000,null,"04.2019-06.2019"]
[null,null,null,null,2,"Dostosowanie do przepisów sanitarnych",null,null,"Usługa zewnętrzna (z wolnej ręki) - 3 tys. zł",null,3000,null,"04.2019-06.2019"]

{"sheet":"BP_Wsparcie pomostowe","index":10,"n_rows":60,"n_cols":17,"rows_kept":60,"cut":false,"hidden":false,"merged":[[0,0,0,14],[43,12,43,14],[26,12,26,14],[30,0,30,9],[30,10,30,11],[30,12,30,14],[34,0,34,9],[34,10,34,11],[34,12,34,14],[38,0,38,9],[38,10,38,11],[38,12,38,14],[41,12,41,13],[42,12,42,13],[40,1,42,3],[40,5,40,7],[40,8,40,9],[40,10,40,11],[40,12,40,13],[41,5,41,7],[41,8,41,9],[41,10,41,11],[36,5,36,7],[36,8,36,9],[19,12,19,14],[23,1,25,3],[23,5,23,7],[23,8,23,9],[23,10,23,11],[23,12,23,13],[24,5,24,7],[24,8,24,9],[24,10,24,11],[24,12,24,13],[25,5,25,7],[25,8,25,9],[25,10,25,11],[25,12,25,13],[22,5,22,7],[22,8,22,9],[22,10,22,11],[22,12,22,13],[9,12,9,13],[10,12,10,13],[11,12,11,13],[16,1,18,3],[16,5,16,7],[16,8,16,9],[16,10,16,11],[16,12,16,13],[17,5,17,7],[17,8,17,9],[17,10,17,11],[17,12,17,13],[18,5,18,7],[18,8,18,9],[18,10,18,11],[18,12,18,13],[12,12,12,13],[45,0,45,4],[9,1,11,3],[9,5,9,7],[10,5,10,7],[11,5,11,7],[9,8,9,9],[10,8,10,9],[11,8,11,9],[9,10,9,11],[10,10,10,11],[11,10,11,11],[19,0,19,9],[19,10,19,11],[26,0,26,9],[26,10,26,11],[43,0,43,9],[43,10,43,11],[12,0,12,9],[12,10,12,11],[42,5,42,7],[42,8,42,9],[42,10,42,11],[39,0,39,14],[40,0,42,0],[58,12,58,14],[59,5,59,7],[59,8,59,9],[59,10,59,11],[59,12,59,14],[52,12,52,14],[52,10,52,11],[52,8,52,9],[52,4,52,7],[57,12,57,14],[56,12,56,14],[53,12,53,14],[54,12,54,14],[52,1,52,3],[58,0,59,0],[58,1,59,3],[58,5,58,7],[58,8,58,9],[58,10,58,11],[57,5,57,7],[57,8,57,9],[57,10,57,11],[56,0,57,0],[56,1,57,3],[56,5,56,7],[56,8,56,9],[56,10,56,11],[53,0,55,0],[53,1,55,3],[53,5,53,7],[53,8,53,9],[53,10,53,11],[54,5,54,7],[54,8,54,9],[54,10,54,11],[29,5,29,7],[29,8,29,9],[29,10,29,11],[29,12,29,13],[47,8,48,14],[46,8,46,14],[55,5,55,7],[55,8,55,9],[55,10,55,11],[55,12,55,14],[36,10,36,11],[36,12,36,13],[35,0,37,0],[35,1,37,3],[35,5,35,7],[35,8,35,9],[35,10,35,11],[35,12,35,13],[31,0,33,0],[31,1,33,3],[31,5,31,7],[31,8,31,9],[31,10,31,11],[31,12,31,13],[32,5,32,7],[32,8,32,9],[32,10,32,11],[32,12,32,13],[37,5,37,7],[37,8,37,9],[37,10,37,11],[37,12,37,13],[33,5,33,7],[33,8,33,9],[33,10,33,11],[33,12,33,13],[8,5,8,7],[8,8,8,9],[8,10,8,11],[8,12,8,13],[27,0,29,0],[27,1,29,3],[27,5,27,7],[27,8,27,9],[27,10,27,11],[27,12,27,13],[20,0,22,0],[20,1,22,3],[20,5,20,7],[20,8,20,9],[20,10,20,11],[20,12,20,13],[21,5,21,7],[21,8,21,9],[21,10,21,11],[21,12,21,13],[28,5,28,7],[28,8,28,9],[28,10,28,11],[28,12,28,13],[13,0,15,0],[13,1,15,3],[13,5,13,7],[13,8,13,9],[13,10,13,11],[13,12,13,13],[6,0,8,0],[6,1,8,3],[6,5,6,7],[6,8,6,9],[6,10,6,11],[6,12,6,13],[7,5,7,7],[7,8,7,9],[7,10,7,11],[7,12,7,13],[14,5,14,7],[14,8,14,9],[14,10,14,11],[14,12,14,13],[15,5,15,7],[15,8,15,9],[15,10,15,11],[15,12,15,13],[2,16,7,19],[2,0,2,14],[5,1,5,3],[5,4,5,7],[5,8,5,9],[5,10,5,11],[5,12,5,13],[3,0,3,7],[4,0,4,7],[4,8,4,14],[3,8,3,14]]}
[]
["Załącznik nr 2 Harmonogram rzeczowo-finansowy do podstawowego wsparcia pomostowego"]
["Harmonogram rzeczowo-finansowy podstawowego wsparcia pomostowego",null,null,null,null,null,null,null,null,null,null,null,null,null,null,null,"Uwaga ! Jeśli w arkuszu potrzebujesz dodać więcej wierszy do wpisania osób, produktów, przychodów, kosztów (lewa strona arkusza - belka boczna \"+\") należy wcześniej uruchomić makra formularza excel. Hasło: CRIS "]
["Termin rozpoczęcia i zakończenia:"]
["Suma wnioskowanego dofinansowania netto (bez podatku VAT):",null,null,null,null,null,null,null,{"$f":"SUM(K13,K20,K27,K31,K35,K39,K44)","v":0}]
[null,"Obszar inwestycji\ni uzasadnienie",null,null,"Nazwa wydatku",null,null,null,"Kalkulacja kosztu:",null,"Suma kosztu netto:",null,"Okres realizacji",null,"W (wypełnia komisja)"]
["1. "," ",null,null,1]
[null,null,null,null,2]
[null,null,null,null,3]
[null,null,null,null,4]
[null,null,null,null,5]
[null,null,null,null,6]
["Suma kosztów kwalifikowanych zadania:",null,null,null,null,null,null,null,null,null,{"$f":"SUM(K7:L12)","v":0}]
["2. "," ",null,null,1]
[null,null,null,null,2]
[null,null,null,null,3]
[null,null,null,null,4]
[null,null,null,null,5]
[null,null,null,null,6]
["Suma kosztów kwalifikowanych zadania:",null,null,null,null,null,null,null,null,null,{"$f":"SUM(K14:L19)","v":0}]
["3. "," ",null,null,1]
[null,null,null,null,2]
[null,null,null,null,3]
[null,null,null,null,4]
[null,null,null,null,5]
[null,null,null,null,6]
["Suma kosztów kwalifikowanych zadania:",null,null,null,null,null,null,null,null,null,{"$f":"SUM(K21:L26)","v":0}]
["4. "," ",null,null,1]
[null,null,null,null,2]
[null,null,null,null,3]
["Suma kosztów kwalifikowanych zadania:",null,null,null,null,null,null,null,null,null,{"$f":"SUM(K28:L30)","v":0}]
["5. "," ",null,null,1]
[null,null,null,null,2]
[null,null,null,null,3]
["Suma kosztów kwalifikowanych zadania:",null,null,null,null,null,null,null,null,null,{"$f":"SUM(K32:L34)","v":0}]
["6. "," ",null,null,1]
[null,null,null,null,2]
[null,null,null,null,3]
["Suma kosztów kwalifikowanych zadania:",null,null,null,null,null,null,null,null,null,{"$f":"SUM(K33:L38)","v":0}]
["\"+\" <--- Dodaj kolejne wydatki"]
["7. "," ",null,null,1]
[null,null,null,null,2]
[null,null,null,null,3]
["Suma kosztów kwalifikowanych zadania:",null,null,null,null,null,null,null,null,null,{"$f":"SUM(K38:L43)","v":0}]
[]
[]
[null,null,null,null,null,null,null,null,"…………………………………………...……………………………………………."]
[null,null,null,null,null,null,null,null,"Podpis Uczestnik/ów Projektu\n lub osób uprawnionych do reprezentowania podmiotu/ów"]
[]
["Uwaga: Harmonogram rzeczowo-finansowy tworzony jest w kwotach netto (bez uwzględnienia podatku VAT)"]
[]
["Przykład:"]
[null,"Obszar inwestycji i uzasadnienie",null,null,"Nazwa wydatku",null,null,null,"Kalkulacja kosztu:",null,"Suma kosztu:",null,"Okres realizacji"]
["1. ","Koszty zatrudnienia",null,null,1,"ZUS/US",null,null,"6 miesięcy x 5 osób x 600,00 zł",null,18000,null,"01.2019 - 06.2019"]
[null,null,null,null,2]
[null,null,null,null,3]
["2. ","Koszty usług obcych",null,null,1,"Biuro księgowe",null,null,"6 miesięcy x 350,00 zł",null,2100,null,"01.2019 - 06.2019"]
[null,null,null,null,2,"Koszty usług marketingowych",null,null,"6 miesięcy x 450,00 zł",null,2700,null,"01.2019 - 06.2019"]
["3. ","Koszty czynszu+media",null,null,1,"Czynsz",null,null,"5 miesięcy x 800,00 zł",null,4000,null,"02.2019 - 06.2019"]
[null,null,null,null,2,"Media",null,null,"5 miesięcy x 300,00 zł",null,3000,null,"02.2019 - 06.2019"]

{"sheet":"SW_Dotacja inwestycyjna","index":11,"n_rows":64,"n_cols":13,"rows_kept":64,"cut":false,"hidden":true,"merged":[[47,1,47,2],[34,1,34,2],[35,1,35,2],[37,1,37,2],[38,1,38,2],[39,1,39,2],[40,1,40,2],[41,1,41,2],[43,1,43,2],[44,1,44,2],[45,1,45,2],[46,1,46,2],[31,1,31,2],[32,1,32,2],[38,3,38,5],[39,3,39,5],[40,3,40,5],[34,3,34,5],[35,3,35,5],[46,3,46,5],[47,3,47,5],[41,3,41,5],[43,3,43,5],[44,3,44,5],[22,1,22,2],[22,3,22,5],[37,3,37,5],[23,1,23,2],[23,3,23,5],[24,1,24,2],[25,1,25,2],[26,1,26,2],[27,1,27,2],[28,1,28,2],[29,1,29,2],[45,3,45,5],[21,1,21,2],[21,3,21,5],[24,3,24,5],[33,1,33,2],[33,3,33,5],[25,3,25,5],[26,3,26,5],[27,3,27,5],[28,3,28,5],[29,3,29,5],[31,3,31,5],[32,3,32,5],[18,3,18,5],[19,1,19,2],[19,3,19,5],[20,1,20,2],[20,3,20,5],[4,0,4,3],[4,6,4,12],[5,0,6,12],[9,1,9,2],[9,3,9,5],[8,6,8,8],[8,9,8,11],[1,0,1,7],[1,8,1,10],[1,11,1,12],[11,1,11,2],[11,3,11,5],[12,1,12,2],[12,3,12,5],[50,0,50,12],[13,1,13,2],[13,3,13,5],[14,1,14,2],[14,3,14,5],[15,1,15,2],[15,3,15,5],[16,1,16,2],[16,3,16,5],[17,1,17,2],[17,3,17,5],[18,1,18,2],[2,5,2,12],[3,2,3,12],[3,0,3,1],[2,0,2,4],[10,3,10,5],[7,0,7,12],[10,1,10,2]]}
[]
["Sprawozdanie z wydatkowania dotacji inwestycyjnej nr:",null,null,null,null,null,null,null,"…………….."]
["Nazwa przedsiębiorstwa społecznego (Beneficjenta pomocy): "]
["Adres: "]
["Okres wydatkowania zgodnie z umową:",null,null,null,"od:","do:"]
["Niniejszym oświadczam, że dokonałem/am zakupów towarów i usług zgodnie z biznesplanem stanowiącym załącznik do umowy. Poniżej przedkładam zbiorczą informację nt. poniesionych kosztów."]
[]
["Zbiorcze zestawienie wydatków w ramach dotacji inwestycyjnej"]
[null,null,null,null,null,null,"Informacje o dokumencie",null,null,"Koszt kwalifikowany w ramach dotacji"]
["l.p","Numer dokumentu",null,"1. Nazwa towaru lub usługi oraz \n2. Opis parametrów jakościowych i technicznych",null,null,"Data wystawienia","Data zapłaty","Numer ewidencyjny - księgowy","brutto"," netto \n(koszt kwalifikowany)","VAT","Obszar i numer wydatku w ramach biznesplanu"]
[1]
[2]
[3]
[4]
[5]
[6]
[7]
[8]
[9]
[10]
[11]
[12]
[13]
[14]
[15]
[16]
[17]
[18]
[19]
[20]
["\"+\" <- dodaj wiersze"]
[21]
[22]
[23]
[24]
[25]
[]
[26]
[27]
[28]
[29]
[30]
[]
[31]
[32]
[33]
[34]
[35]
[null,null,null,null,null,"SUMA:",{"$f":"SUM(G11:G48)","v":0},null,{"$f":"SUM(I11:I48)","v":0},{"$f":"SUM(J11:J48)","v":0},{"$f":"SUM(K11:K48)","v":0},{"$f":"SUM(L11:L48)","v":0}]
[]
["Oświadczam również, że faktury/rachunki oraz dokumenty równoważne ujęte w sprawozdaniu zostały opłacone w całości."]
[null,null,null,null,null,null,null,null,"......................................................... "]
[null,null,null,null,null,null,null,null,null,"Data i podpis"]
[]
[]
[]
[]
[null,"Obszar 1",{"$f":"'BP_Dotacja inwestycyjna'!B6","v":0}]
[null,"Obszar 2",{"$f":"'BP_Dotacja inwestycyjna'!B12","v":0}]
[null,"Obszar 3",{"$f":"'BP_Dotacja inwestycyjna'!B18","v":0}]
[null,"Obszar 4",{"$f":"'BP_Dotacja inwestycyjna'!B24","v":0}]
[null,"Obszar 5",{"$f":"'BP_Dotacja inwestycyjna'!B27","v":0}]
[null,"Obszar 6",{"$f":"'BP_Dotacja inwestycyjna'!B30","v":0}]
[null,"Obszar 7",{"$f":"'BP_Dotacja inwestycyjna'!B34","v":0}]

{"sheet":"SW_Wsparcie pomostowe","index":12,"n_rows":70,"n_cols":15,"rows_kept":70,"cut":false,"hidden":true,"merged":[[6,14,6,19],[7,14,7,19],[8,14,8,19],[5,14,5,19],[13,6,13,8],[13,9,13,11],[8,0,8,3],[8,4,8,12],[55,0,55,12],[12,0,12,12],[4,6,5,7],[4,8,5,12],[5,0,5,5],[1,0,1,7],[1,8,1,10],[6,0,6,3],[6,4,6,12],[7,0,7,3],[7,4,7,12],[9,0,10,12],[14,1,14,2],[14,3,14,5],[15,1,15,2],[15,3,15,5],[16,1,16,2],[16,3,16,5],[17,1,17,2],[17,3,17,5],[18,1,18,2],[18,3,18,5],[19,1,19,2],[19,3,19,5],[20,1,20,2],[20,3,20,5],[21,1,21,2],[21,3,21,5],[22,1,22,2],[22,3,22,5],[23,1,23,2],[23,3,23,5],[24,1,24,2],[24,3,24,5],[25,1,25,2],[25,3,25,5],[26,1,26,2],[26,3,26,5],[27,1,27,2],[27,3,27,5],[28,1,28,2],[28,3,28,5],[29,1,29,2],[29,3,29,5],[30,1,30,2],[30,3,30,5],[31,1,31,2],[31,3,31,5],[32,1,32,2],[32,3,32,5],[33,1,33,2],[33,3,33,5],[34,1,34,2],[34,3,34,5],[36,1,36,2],[36,3,36,5],[37,1,37,2],[37,3,37,5],[38,1,38,2],[38,3,38,5],[39,1,39,2],[39,3,39,5],[40,1,40,2],[40,3,40,5],[42,1,42,2],[42,3,42,5],[49,3,49,5],[43,1,43,2],[43,3,43,5],[44,1,44,2],[44,3,44,5],[45,1,45,2],[45,3,45,5],[3,0,3,1],[3,2,3,12],[2,0,2,4],[2,5,2,12],[50,1,50,2],[50,3,50,5],[51,1,51,2],[51,3,51,5],[52,1,52,2],[52,3,52,5],[46,1,46,2],[46,3,46,5],[48,1,48,2],[48,3,48,5],[49,1,49,2]]}
[]
["Sprawozdanie z wydatkowania wsparcia pomostowego zgodnie z umową nr:",null,null,null,null,null,null,null," ………………………….."]
["Nazwa przedsiębiorstwa społecznego (Beneficjenta pomocy):"]
["Adres:"]
["Zestawienie za okres:",null,null,"od:","do:",null,"Sprawozdanie obejmuje:"]
["Sprawozdanie merytoryczne:",null,null,null,null,null,null,null,null,null,null,null,null,null,"Instrukcja"]
["1. W zakresie realizacji celów społecznych \nzgodnie z biznesplanem:",null,null,null,null,null,null,null,null,null,null,null,null,null,"Należy odnieść się do celów wskazanych w biznesplanie. Czy wnioskodawcy udało się osiągnąć cele społeczne w kontekście zaangażowanej kadry, odbiorców przedsięwzięcia lub wsparcia określonych grup. Czy wnioskodawcy udało się wdrożyć ofertę opracowaną specjalnie w celach społecznych? Jeżeli założenia biznesplanu nie zostały osiągnięte należy podać jaki inny wpływ społeczny miało planowane przedsięwzięcie."]
["2. W zakresie realizacji celów ekonomicznych\nzgodnie z biznesplanem:",null,null,null,null,null,null,null,null,null,null,null,null,null,"Należy odnieść się do celów wskazanych w biznesplanie. Czy wnioskodawca osiągnął założenia ekonomiczne w zakresie ilości sprzedanych usług, osiągniętych przychodów? Czy założenia ekonomiczne uległy zmianie, jeśli tak dlaczego? Jeśli nie udało się osiągnąć oczekiwanych rezultatów jaka jest sytuacja ekonomiczna podmiotu?"]
["3. Informacje w zakresie zaangazowanych zasobów i utworzonych stanowisk pracy.\n",null,null,null,null,null,null,null,null,null,null,null,null,null,"Należy wskazać jakie zasoby zaangażował wnioskodawca w realizację przedsięwzięcia. Czy zostały wniesione zasoby (np.. finansowe, rzeczowe, osobowe)? Jaka jest aktualnie sytuacja zatrudnieniowa organizacji, w tym osób, dla których została udzielona dotacja na utworzenie miejsca pracy?"]
["Niniejszym oświadczam, że dokonałem/am zakupów towarów i usług zgodnie z harmonogramem rzeczowo-finansowym wsparcie pomostowego określonym w umowie. Poniżej przedkładam zbiorczą informację nt. poniesionych kosztów."]
[]
[]
["Zbiorcze zestawienie wydatków w ramach dotacji inwestycyjnej"]
[null,null,null,null,null,null,"Informacje o dokumencie",null,null,"Kwoty dokumentu w cz. dotyczącej dotacji"]
["l.p","Numer dokumentu",null,"1. Nazwa towaru lub usługi oraz \n2. Opis parametrów jakościowych i technicznych",null,null,"Data wystawienia","Data zapłaty","Numer ewidencyjny - księgowy","brutto"," netto \n(koszt kwalifikowany)","VAT","Obszar i numer wydatku w ramach biznesplanu"]
[1,null,null,null,null,null,null,null,null,null,null,null," "]
[2,null,null,null,null,null,null,null,null,null,null,null," "]
[3,null,null,null,null,null,null,null,null,null,null,null," "]
[4,null,null,null,null,null,null,null,null,null,null,null," "]
[5,null,null,null,null,null,null,null,null,null,null,null," "]
[6,null,null,null,null,null,null,null,null,null,null,null," "]
[7,null,null,null,null,null,null,null,null,null,null,null," "]
[8,null,null,null,null,null,null,null,null,null,null,null," "]
[9,null,null,null,null,null,null,null,null,null,null,null," "]
[10,null,null,null,null,null,null,null,null,null,null,null," "]
[11,null,null,null,null,null,null,null,null,null,null,null," "]
[12,null,null,null,null,null,null,null,null,null,null,null," "]
[13,null,null,null,null,null,null,null,null,null,null,null," "]
[14,null,null,null,null,null,null,null,null,null,null,null," "]
[15,null,null,null,null,null,null,null,null,null,null,null," "]
[16,null,null,null,null,null,null,null,null,null,null,null," "]
[17,null,null,null,null,null,null,null,null,null,null,null," "]
[18,null,null,null,null,null,null,null,null,null,null,null," "]
[19,null,null,null,null,null,null,null,null,null,null,null," "]
[20,null,null,null,null,null,null,null,null,null,null,null," "]
["\"+\" <- dodaj wiersze"]
[21]
[22]
[23]
[24]
[25]
[]
[26]
[27]
[28]
[29]
[30]
[]
[31]
[32]
[33]
[34]
[35]
[null,null,null,null,null,"SUMA:",{"$f":"SUM(G16:G53)","v":0},{"$f":"SUM(H16:H53)","v":0},{"$f":"SUM(I16:I53)","v":0},{"$f":"SUM(J16:J53)","v":0},{"$f":"SUM(K16:K53)","v":0},{"$f":"SUM(L16:L53)","v":0}]
[]
["Oświadczam również, że faktury/rachunki oraz dokumenty równoważne ujęte w sprawozdaniu zostały opłacone w całości."]
[]
[null,null,null,null,null,null,null,"......................................................... "]
[null,null,null,null,null,null,null,null,"Data i podpis"]
[]
[]
[]
[null,"n"]
[null,"Obszar 1",{"$f":"'BP_Wsparcie pomostowe'!B7","v":" "},{"$f":"SUMIF(M13:M51,\"Obszar 1\",J13:J51)","v":0}]
[null,"Obszar 2",{"$f":"'BP_Wsparcie pomostowe'!B14","v":" "},{"$f":"SUMIF(M15:M52,\"Obszar 2\",J15:J52)","v":0}]
[null,"Obszar 3",{"$f":"'BP_Wsparcie pomostowe'!B21","v":" "},{"$f":"SUMIF(M16:M53,\"Obszar 3\",J16:J53)","v":0}]
[null,"Obszar 4",{"$f":"'BP_Wsparcie pomostowe'!B28","v":" "},{"$f":"SUMIF(M17:M54,\"Obszar 4\",J17:J54)","v":0}]
[null,"Obszar 5",{"$f":"'BP_Wsparcie pomostowe'!B32","v":" "},{"$f":"SUMIF(M18:M55,\"Obszar 5\",J18:J55)","v":0}]
[null,"Obszar 6",{"$f":"'BP_Wsparcie pomostowe'!B36","v":" "},{"$f":"SUMIF(M19:M56,\"Obszar 6\",J19:J56)","v":0}]
[null,"Obszar 7",{"$f":"'BP_Wsparcie pomostowe'!B41","v":" "},{"$f":"SUMIF(M20:M57,\"Obszar 7\",J20:J57)","v":0}]